fUSD/lending_fUSD_20240406
["ID","MTS","AMOUNT","RATE_DAILY","PERIOD"]
[321688897,1712386240295,-1040.0,0.00023596,2]
[321688898,1712386240304,-500.0,0.00023596,2]
[321688899,1712386240313,-500.0,0.00023596,2]
[321688900,1712386240322,-500.0,0.00023596,2]
[321688901,1712386240331,-500.0,0.00023596,2]
[321688902,1712386240340,-500.0,0.00023596,2]
[321688903,1712386240350,-500.0,0.00023596,2]
[321688904,1712386240359,-296.32546509,0.00023596,2]
[321688905,1712386240368,-500.0,0.00023596,2]
[321688907,1712386240378,-500.0,0.00023596,2]
[321688909,1712386240387,-500.0,0.00023596,2]
[321688910,1712386240395,-500.0,0.00023596,2]
[321688911,1712386240405,-500.0,0.00023596,2]
[321688912,1712386240414,-500.0,0.00023596,2]
[321688913,1712386240423,-500.0,0.00023596,2]
[321688914,1712386240432,-500.0,0.00023596,2]
[321688915,1712386240442,-229.28522858,0.00023596,2]
[321688916,1712386240451,-1679.09,0.00023596,2]
[321688917,1712386240461,-1679.09,0.00023596,2]
[321688918,1712386240470,-500.0,0.00023596,2]
[321688919,1712386240479,-500.0,0.00023596,2]
[321688920,1712386240489,-500.0,0.00023596,2]
[321688921,1712386240499,-623.33771531,0.00023596,2]
[321688922,1712386240508,-500.0,0.00023596,2]
[321688923,1712386240518,-614.16,0.00023596,2]
[321688924,1712386240527,-500.0,0.00023596,2]
[321688925,1712386240536,-500.0,0.00023596,2]
[321688926,1712386240545,-544.6004564,0.00023596,2]
[321688927,1712386240554,-500.0,0.00023596,2]
[321688928,1712386240563,-500.0,0.00023596,2]
[321688929,1712386240573,-500.0,0.00023596,2]
[321688930,1712386240585,-500.0,0.00023596,2]
[321688931,1712386240596,-506.95484831,0.00023597,2]
[321688932,1712386240606,-509.05213731,0.00023597,2]
[321688933,1712386240615,-500.0,0.00023597,2]
[321688934,1712386240625,-500.0,0.00023597,2]
[321688935,1712386240634,-500.0,0.00023597,2]
[321688936,1712386240643,-500.0,0.00023597,2]
[321688937,1712386240653,-500.0,0.00023597,2]
[321688938,1712386240663,-500.0,0.00023597,2]
[321688939,1712386240674,-500.0,0.00023597,2]
[321688940,1712386240683,-500.0,0.00023597,2]
[321688941,1712386240692,-500.0,0.00023597,2]
[321688942,1712386240702,-500.0,0.00023597,2]
[321688943,1712386240712,-500.0,0.00023597,2]
[321688944,1712386240723,-500.0,0.00023597,2]
[321688945,1712386240733,-500.0,0.00023597,2]
[321688946,1712386240744,-500.0,0.00023597,2]
[321688947,1712386240754,-500.0,0.00023597,2]
[321688948,1712386240764,-500.0,0.00023597,2]
[321688949,1712386240774,-500.0,0.00023597,2]
[321688950,1712386240783,-500.0,0.00023597,2]
[321688951,1712386240793,-512.76,0.00023597,2]
[321688952,1712386240803,-500.0,0.00023597,2]
[321688953,1712386240813,-500.0,0.00023597,2]
[321688954,1712386240824,-500.0,0.00023597,2]
[321688955,1712386240835,-500.0,0.00023597,2]
[321688956,1712386240845,-500.0,0.00023597,2]
[321688957,1712386240854,-500.0,0.00023597,2]
[321688958,1712386240863,-500.0,0.00023597,2]
[321688959,1712386240872,-500.0,0.00023597,2]
[321688960,1712386240881,-500.0,0.00023597,2]
[321688961,1712386240891,-500.0,0.00023597,2]
[321688962,1712386240900,-500.0,0.00023597,2]
[321688963,1712386240910,-500.0,0.00023597,2]
[321688964,1712386240919,-500.0,0.00023597,2]
[321688965,1712386240928,-500.0,0.00023597,2]
[321688966,1712386240937,-500.0,0.00023597,2]
[321688967,1712386240947,-500.0,0.00023597,2]
[321688968,1712386240956,-500.0,0.00023597,2]
[321688969,1712386240967,-500.0,0.00023597,2]
[321688970,1712386240977,-500.0,0.00023597,2]
[321688971,1712386240989,-500.0,0.00023597,2]
[321688972,1712386240999,-500.0,0.00023597,2]
[321688973,1712386241011,-500.0,0.00023597,2]
[321688974,1712386241022,-500.0,0.00023597,2]
[321688975,1712386241032,-500.0,0.00023597,2]
[321688976,1712386241043,-500.0,0.00023597,2]
[321688977,1712386241053,-500.0,0.00023597,2]
[321688978,1712386241062,-500.0,0.00023597,2]
[321688979,1712386241072,-500.0,0.00023597,2]
[321688980,1712386241082,-500.0,0.00023597,2]
[321688981,1712386241091,-500.0,0.00023597,2]
[321688982,1712386241101,-500.0,0.00023597,2]
[321688983,1712386241109,-500.0,0.00023597,2]
[321688984,1712386241120,-500.0,0.00023597,2]
[321688985,1712386241129,-1040.0,0.00023597,2]
[321688986,1712386241140,-1040.0,0.00023597,2]
[321688987,1712386241150,-500.0,0.00023597,2]
[321688988,1712386241159,-500.0,0.00023597,2]
[321688989,1712386241168,-500.0,0.00023597,2]
[321688990,1712386241178,-500.0,0.00023597,2]
[321688991,1712386241187,-500.0,0.00023597,2]
[321688992,1712386241197,-500.0,0.00023597,2]
[321688993,1712386241206,-500.0,0.00023597,2]
[321688994,1712386241217,-500.0,0.00023597,2]
[321688995,1712386241226,-500.0,0.00023597,2]
[321688996,1712386241237,-500.0,0.00023597,2]
[321688997,1712386241246,-500.0,0.00023597,2]
[321688998,1712386241256,-975.59,0.00023597,2]
[321688999,1712386241265,-500.0,0.00023597,2]
[321689000,1712386241275,-500.0,0.00023597,2]
[321689001,1712386241284,-500.0,0.00023597,2]
[321689002,1712386241293,-500.0,0.00023597,2]
[321689003,1712386241303,-500.0,0.00023597,2]
[321689004,1712386241313,-1018.91,0.00023597,2]
[321689005,1712386241322,-1256.98,0.00023597,2]
[321689006,1712386241332,-500.0,0.00023597,2]
[321689007,1712386241341,-500.0,0.00023597,2]
[321689008,1712386241350,-500.0,0.00023597,2]
[321689009,1712386241359,-500.0,0.00023597,2]
[321689010,1712386241370,-611.11,0.00023597,2]
[321689011,1712386241380,-500.0,0.00023597,2]
[321689012,1712386241388,-500.0,0.00023597,2]
[321689013,1712386241398,-615.35,0.00023597,2]
[321689014,1712386241407,-500.0,0.00023597,2]
[321689015,1712386241416,-500.0,0.00023597,2]
[321689016,1712386241425,-500.0,0.00023597,2]
[321689017,1712386241434,-500.0,0.00023597,2]
[321689018,1712386241443,-500.0,0.00023597,2]
[321689019,1712386241452,-1679.09,0.00023597,2]
[321689020,1712386241462,-1679.09,0.00023597,2]
[321689021,1712386241472,-500.0,0.00023597,2]
[321689022,1712386241481,-1160.49,0.00023597,2]
[321689023,1712386241490,-500.0,0.00023597,2]
[321689024,1712386241499,-500.0,0.00023597,2]
[321689025,1712386241509,-500.0,0.00023597,2]
[321689026,1712386241518,-502.08,0.00023597,2]
[321689027,1712386241527,-500.0,0.00023597,2]
[321689028,1712386241536,-500.0,0.00023597,2]
[321689029,1712386241546,-500.0,0.00023597,2]
[321689030,1712386241555,-500.0,0.00023597,2]
[321689031,1712386241564,-606.65,0.00023597,2]
[321689032,1712386241573,-500.0,0.00023597,2]
[321689033,1712386241586,-500.0,0.00023597,2]
[321689034,1712386241596,-500.0,0.00023597,2]
[321689035,1712386241606,-500.0,0.00023597,2]
[321689036,1712386241615,-500.0,0.00023597,2]
[321689037,1712386241625,-464.10766309,0.00023597,2]
[321689038,1712386241636,-500.0,0.00023597,2]
[321689039,1712386241645,-543.36,0.00023597,2]
[321689040,1712386241656,-473.81329701,0.00023598,2]
[321689041,1712386241668,-500.0,0.00023598,2]
[321689042,1712386241678,-500.0,0.00023598,2]
[321689043,1712386241688,-500.0,0.00023598,2]
[321689044,1712386241697,-500.0,0.00023598,2]
[321689045,1712386241706,-500.0,0.00023598,2]
[321689046,1712386241716,-500.0,0.00023598,2]
[321689047,1712386241727,-421.25418562,0.00023598,2]
[321689048,1712386241736,-500.0,0.00023598,2]
[321689049,1712386241746,-500.0,0.00023598,2]
[321689050,1712386241758,-500.0,0.00023598,2]
[321689051,1712386241768,-500.0,0.00023598,2]
[321689052,1712386241779,-500.0,0.00023598,2]
[321689053,1712386241789,-350.84,0.00023598,2]
[321689054,1712386241799,-500.0,0.00023598,2]
[321689055,1712386241809,-500.0,0.00023598,2]
[321689056,1712386241819,-177.92,0.00023598,2]
[321689057,1712386241828,-2923.48,0.00023598,2]
[321689058,1712386241838,-500.0,0.00023598,2]
[321689059,1712386241846,-892.13,0.00023598,2]
[321689060,1712386241856,-500.0,0.00023598,2]
[321689061,1712386241865,-500.0,0.00023598,2]
[321689062,1712386241874,-500.0,0.00023598,2]
[321689063,1712386241883,-1040.0,0.00023598,2]
[321689064,1712386241893,-931.53,0.00023598,2]
[321689065,1712386241902,-500.0,0.00023598,2]
[321689066,1712386241911,-298.3,0.00023598,2]
[321689067,1712386241920,-500.0,0.00023598,2]
[321689068,1712386241929,-393.5,0.00023598,2]
[321689069,1712386241939,-500.0,0.00023598,2]
[321689070,1712386241948,-500.0,0.00023598,2]
[321689071,1712386241957,-500.0,0.00023598,2]
[321689072,1712386241967,-1679.09,0.00023598,2]
[321689073,1712386241976,-717.43,0.00023598,2]
[321689074,1712386241986,-560.21,0.00023598,2]
[321689075,1712386241995,-500.0,0.00023598,2]
[321689076,1712386242005,-1749.54,0.00023598,2]
[321689077,1712386242014,-500.0,0.00023598,2]
[321689078,1712386242024,-500.0,0.00023599,2]
[321689079,1712386242033,-500.0,0.00023599,2]
[321689080,1712386242043,-500.0,0.00023599,2]
[321689081,1712386242052,-336.16,0.00023599,2]
[321689082,1712386242062,-2923.48,0.00023599,2]
[321689083,1712386242071,-500.0,0.00023599,2]
[321689084,1712386242080,-500.0,0.00023599,2]
[321689085,1712386242089,-892.13,0.00023599,2]
[321689086,1712386242099,-500.0,0.00023599,2]
[321689087,1712386242108,-500.0,0.00023599,2]
[321689088,1712386242118,-500.0,0.00023599,2]
[321689089,1712386242128,-500.0,0.00023599,2]
[321689090,1712386242137,-500.0,0.00023599,2]
[321689091,1712386242147,-1040.0,0.00023599,2]
[321689092,1712386242156,-1040.0,0.00023599,2]
[321689093,1712386242166,-931.53,0.00023599,2]
[321689094,1712386242175,-434.35,0.00023599,2]
[321689095,1712386242185,-491.0,0.00023599,2]
[321689096,1712386242194,-500.0,0.00023599,2]
[321689097,1712386242204,-500.0,0.00023599,2]
[321689098,1712386242213,-500.0,0.00023599,2]
[321689099,1712386242223,-500.0,0.00023599,2]
[321689100,1712386242234,-500.0,0.00023599,2]
[321689101,1712386242243,-1679.09,0.00023599,2]
[321689102,1712386242253,-1679.09,0.00023599,2]
[321689103,1712386242263,-717.43,0.00023599,2]
[321689104,1712386242272,-560.21,0.00023599,2]
[321689105,1712386242282,-500.0,0.00023599,2]
[321689106,1712386242291,-500.0,0.00023599,2]
[321689107,1712386242301,-1749.54,0.00023599,2]
[321689108,1712386242310,-500.0,0.00023599,2]
[321689109,1712386242319,-500.0,0.00023603,2]
[321689110,1712386242329,-500.0,0.00023603,2]
[321689111,1712386242338,-500.0,0.00023603,2]
[321689112,1712386242347,-2923.48,0.00023603,2]
[321689113,1712386242356,-2923.48,0.00023603,2]
[321689114,1712386242366,-2923.48,0.00023603,2]
[321689115,1712386242375,-500.0,0.00023603,2]
[321689116,1712386242384,-500.0,0.00023603,2]
[321689117,1712386242393,-892.13,0.00023603,2]
[321689118,1712386242403,-892.13,0.00023603,2]
[321689119,1712386242412,-892.13,0.00023603,2]
[321689120,1712386242421,-500.0,0.00023603,2]
[321689121,1712386242430,-500.0,0.00023603,2]
[321689122,1712386242439,-500.0,0.00023603,2]
[321689123,1712386242448,-500.0,0.00023603,2]
[321689124,1712386242457,-500.0,0.00023603,2]
[321689125,1712386242466,-931.53,0.00023603,2]
[321689126,1712386242475,-931.53,0.00023603,2]
[321689127,1712386242485,-931.53,0.00023603,2]
[321689128,1712386242494,-500.0,0.00023603,2]
[321689129,1712386242504,-500.0,0.00023603,2]
[321689130,1712386242513,-500.0,0.00023603,2]
[321689131,1712386242522,-717.43,0.00023603,2]
[321689132,1712386242531,-717.43,0.00023603,2]
[321689133,1712386242540,-717.43,0.00023603,2]
[321689134,1712386242549,-560.21,0.00023603,2]
[321689135,1712386242558,-560.21,0.00023603,2]
[321689136,1712386242567,-560.21,0.00023603,2]
[321689137,1712386242576,-1749.54,0.00023603,2]
[321689138,1712386242589,-1749.54,0.00023603,2]
[321689139,1712386242598,-1749.54,0.00023603,2]
[321689140,1712386242607,-500.0,0.00023603,2]
[321689141,1712386242617,-500.0,0.00023603,2]
[321689142,1712386242626,-500.0,0.00023603,2]
[321689143,1712386242636,-500.0,0.00023604,2]
[321689144,1712386242645,-500.0,0.00023604,2]
[321689145,1712386242654,-1040.0,0.00023604,2]
[321689146,1712386242665,-500.0,0.00023604,2]
[321689147,1712386242674,-245.95,0.00023604,2]
[321689148,1712386242684,-1679.09,0.00023604,2]
[321689149,1712386242693,-500.0,0.00023604,2]
[321689150,1712386242703,-2467.79692967,0.00023645,2]
[321689151,1712386242712,-8692.09294882,0.00023652,2]
[321689152,1712386242722,-500.0,0.00023695,2]
[321689153,1712386242902,-500.0,0.00023695,2]
[321689154,1712386242912,-1040.0,0.00023695,2]
[321689155,1712386242922,-500.0,0.00023695,2]
[321689156,1712386242931,-1679.09,0.00023695,2]
[321689157,1712386242940,-500.0,0.00023695,2]
[321689158,1712386242950,-1500.0,0.00023759,2]
[321689159,1712386242959,-2467.79692967,0.00023802,2]
[321689160,1712386242969,-8692.09294882,0.00023808,2]
[321689161,1712386242978,-2467.79692967,0.00023959,2]
[321689162,1712386242988,-8692.09294882,0.00023964,2]
[321689163,1712386242998,-320.99953844,0.00023997,2]
[321689164,1712386243008,-500.0,0.00023997,2]
[321689165,1712386243018,-500.0,0.00023998,2]
[321689166,1712386243028,-2923.48,0.00023998,2]
[321689167,1712386243038,-892.13,0.00023998,2]
[321689168,1712386243048,-500.0,0.00023998,2]
[321689169,1712386243057,-931.53,0.00023998,2]
[321689170,1712386243068,-500.0,0.00023998,2]
[321689171,1712386243079,-717.43,0.00023998,2]
[321689172,1712386243088,-560.21,0.00023998,2]
[321689173,1712386243098,-1749.54,0.00023998,2]
[321689174,1712386243108,-500.0,0.00023998,2]
[321689175,1712386243117,-500.0,0.0002411,2]
[321689176,1712386243127,-321.95,0.0002411,2]
[321689177,1712386243137,-1040.0,0.0002411,2]
[321689178,1712386243146,-500.0,0.0002411,2]
[321689179,1712386243155,-1679.09,0.0002411,2]
[321689180,1712386243165,-500.0,0.0002411,2]
[321689181,1712386243174,-2467.79692967,0.00024116,2]
[321689182,1712386243183,-8692.09294882,0.0002412,2]
[321689183,1712386243193,-188.26618434,0.0002416,2]
[321689185,1712386243202,-605.11390754,0.00024228,2]
[321689186,1712386243213,-2467.79692967,0.00024272,2]
[321689187,1712386243222,-8692.09294882,0.00024276,2]
[321689188,1712386243233,-605.1139074,0.00024276,2]
[321689190,1712386243243,-605.1139074,0.00024324,2]
[321689191,1712386243253,-500.0,0.00024328,2]
[321689192,1712386243262,-500.0,0.00024328,2]
[321689193,1712386243271,-500.0,0.00024328,2]
[321689194,1712386243283,-500.0,0.00024328,2]
[321689195,1712386243293,-500.0,0.00024328,2]
[321689196,1712386243302,-975.59,0.00024328,2]
[321689197,1712386243312,-500.0,0.00024328,2]
[321689198,1712386243321,-500.0,0.00024328,2]
[321689199,1712386243330,-158.02167902,0.00024328,2]
[321689200,1712386243340,-1018.91,0.00024328,2]
[321689201,1712386243350,-1256.98,0.00024328,2]
[321689202,1712386243359,-500.0,0.00024328,2]
[321689203,1712386243368,-500.0,0.00024328,2]
[321689204,1712386243378,-611.11,0.00024328,2]
[321689205,1712386243387,-500.0,0.00024328,2]
[321689206,1712386243397,-500.0,0.00024328,2]
[321689207,1712386243406,-500.0,0.00024328,2]
[321689208,1712386243415,-500.0,0.00024328,2]
[321689209,1712386243425,-500.0,0.00024328,2]
[321689210,1712386243435,-1160.49,0.00024328,2]
[321689211,1712386243444,-411.04,0.00024328,2]
[321689212,1712386243454,-502.08,0.00024328,2]
[321689213,1712386243464,-500.0,0.00024328,2]
[321689214,1712386243473,-500.0,0.00024328,2]
[321689215,1712386243482,-500.0,0.00024328,2]
[321689216,1712386243492,-500.0,0.00024328,2]
[321689217,1712386243500,-606.65,0.00024328,2]
[321689218,1712386243510,-500.0,0.00024328,2]
[321689219,1712386243519,-500.0,0.00024328,2]
[321689220,1712386243528,-500.0,0.00024328,2]
[321689221,1712386243538,-500.0,0.00024328,2]
[321689222,1712386243547,-1000.0,0.00024329,2]
[321689223,1712386243556,-100000.0,0.00024329,2]
[321689224,1712386243566,-39929.6927,0.00024329,2]
[321689225,1712386243576,-605.1139074,0.00024372,2]
[321689226,1712386243588,-605.1139074,0.0002442,2]
[321689227,1712386243598,-500.0,0.00024428,2]
[321689228,1712386243607,-517.59481635,0.00024428,2]
[321689229,1712386243617,-516.15589958,0.00024428,2]
[321689230,1712386243627,-500.38550192,0.00024428,2]
[321689231,1712386243640,-500.0,0.00024428,2]
[321689233,1712386243649,-641.46693765,0.00024428,2]
[321689234,1712386243658,-500.0,0.00024428,2]
[321689235,1712386243669,-500.0,0.00024428,2]
[321689236,1712386243680,-500.0,0.00024428,2]
[321689237,1712386243689,-523.74113633,0.00024428,2]
[321689238,1712386243698,-500.0,0.00024428,2]
[321689239,1712386243708,-500.0,0.00024428,2]
[321689240,1712386243718,-514.72348295,0.00024428,2]
[321689241,1712386243727,-500.0,0.00024428,2]
[321689242,1712386243736,-500.0,0.00024428,2]
[321689243,1712386243746,-500.0,0.00024428,2]
[321689244,1712386243756,-686.24,0.00024428,2]
[321689245,1712386243766,-2923.48,0.00024428,2]
[321689246,1712386243776,-627.84,0.00024428,2]
[321689247,1712386243786,-892.13,0.00024428,2]
[321689248,1712386243796,-500.0,0.00024428,2]
[321689249,1712386243806,-500.0,0.00024428,2]
[321689250,1712386243815,-500.0,0.00024428,2]
[321689251,1712386243825,-500.0,0.00024428,2]
[321689252,1712386243835,-500.0,0.00024428,2]
[321689253,1712386243843,-931.53,0.00024428,2]
[321689254,1712386243853,-545.86,0.00024428,2]
[321689255,1712386243862,-500.0,0.00024428,2]
[321689256,1712386243871,-500.0,0.00024428,2]
[321689257,1712386243880,-717.43,0.00024428,2]
[321689258,1712386243889,-500.0,0.00024428,2]
[321689259,1712386243899,-492.86700579,0.00024428,2]
[321689260,1712386243909,-560.21,0.00024428,2]
[321689261,1712386243918,-500.0,0.00024428,2]
[321689262,1712386243928,-500.0,0.00024428,2]
[321689263,1712386243937,-1749.54,0.00024428,2]
[321689264,1712386243947,-500.0,0.00024428,2]
[321689265,1712386243956,-500.0,0.00024428,2]
[321689266,1712386243966,-625.68,0.00024428,2]
[321689267,1712386243975,-500.0,0.00024428,2]
[321689268,1712386243984,-500.0,0.00024428,2]
[321689269,1712386243993,-2467.79692967,0.00024429,2]
[321689270,1712386244002,-8692.09294882,0.00024432,2]
[321689271,1712386244012,-605.1139074,0.00024468,2]
[321689272,1712386244021,-500.0,0.000245,2]
[321689273,1712386244030,-5546.2557569,0.000245,2]
[321689274,1712386244039,-7500.0,0.000245,2]
[321689275,1712386244049,-479.81235898,0.000245,2]
[321689276,1712386244058,-14532.18453428,0.0002451,2]
[321689277,1712386244068,-1500.0,0.00024513,2]
[321689278,1712386244077,-605.1139074,0.00024516,2]
[321689279,1712386244086,-14532.18453417,0.00024545,2]
[321689280,1712386244095,-500.0,0.00024555,2]
[321689281,1712386244105,-1040.0,0.00024555,2]
[321689282,1712386244114,-500.0,0.00024555,2]
[321689283,1712386244123,-1679.09,0.00024555,2]
[321689284,1712386244133,-500.0,0.00024555,2]
[321689285,1712386244142,-605.1139074,0.00024564,2]
[321689286,1712386244151,-14532.18453417,0.00024581,2]
[321689287,1712386244160,-2467.79692967,0.00024586,2]
[321689288,1712386244169,-500.0,0.00024588,2]
[321689289,1712386244179,-2923.48,0.00024588,2]
[321689290,1712386244188,-892.13,0.00024588,2]
[321689291,1712386244197,-500.0,0.00024588,2]
[321689292,1712386244206,-931.53,0.00024588,2]
[321689293,1712386244217,-8692.09294882,0.00024588,2]
[321689294,1712386244226,-500.0,0.00024588,2]
[321689295,1712386244235,-717.43,0.00024588,2]
[321689296,1712386244245,-560.21,0.00024588,2]
[321689297,1712386244254,-1749.54,0.00024588,2]
[321689298,1712386244264,-500.0,0.00024588,2]
[321689299,1712386244273,-500.0,0.00024589,2]
[321689300,1712386244283,-500.0,0.00024598,2]
[321689301,1712386244292,-500.0,0.00024598,2]
[321689302,1712386244301,-500.0,0.00024598,2]
[321689303,1712386244310,-500.0,0.00024598,2]
[321689304,1712386244320,-1256.98,0.00024598,2]
[321689305,1712386244329,-500.0,0.00024598,2]
[321689306,1712386244339,-611.11,0.00024598,2]
[321689307,1712386244348,-500.0,0.00024598,2]
[321689308,1712386244357,-500.0,0.00024598,2]
[321689309,1712386244367,-500.0,0.00024598,2]
[321689310,1712386244376,-1160.49,0.00024598,2]
[321689311,1712386244385,-500.0,0.00024598,2]
[321689312,1712386244395,-500.0,0.00024598,2]
[321689313,1712386244404,-500.0,0.00024598,2]
[321689314,1712386244413,-500.0,0.00024598,2]
[321689315,1712386244422,-500.0,0.00024598,2]
[321689316,1712386244431,-500.0,0.00024598,2]
[321689317,1712386244440,-500.0,0.00024598,2]
[321689318,1712386244449,-500.0,0.00024598,2]
[321689319,1712386244460,-518.35351566,0.00024599,2]
[321689320,1712386244469,-524.29278363,0.00024599,2]
[321689321,1712386244478,-544.48881619,0.00024599,2]
[321689322,1712386244488,-522.71687581,0.00024599,2]
[321689323,1712386244497,-511.45474773,0.00024599,2]
[321689324,1712386244507,-520.23066607,0.00024599,2]
[321689325,1712386244516,-517.24692788,0.00024599,2]
[321689326,1712386244525,-500.0,0.00024599,2]
[321689327,1712386244534,-520.7391056,0.00024599,2]
[321689328,1712386244544,-274.17183243,0.00024599,2]
[321689329,1712386244555,-500.0,0.00024599,2]
[321689330,1712386244564,-500.0,0.00024599,2]
[321689331,1712386244577,-500.0,0.00024599,2]
[321689332,1712386244592,-323.34403828,0.00024599,2]
[321689333,1712386244601,-500.0,0.00024599,2]
[321689334,1712386244613,-500.0,0.00024599,2]
[321689335,1712386244623,-686.24,0.00024599,2]
[321689336,1712386244634,-686.24,0.00024599,2]
[321689337,1712386244644,-627.84,0.00024599,2]
[321689338,1712386244653,-627.84,0.00024599,2]
[321689339,1712386244665,-500.0,0.00024599,2]
[321689340,1712386244676,-500.0,0.00024599,2]
[321689341,1712386244687,-500.0,0.00024599,2]
[321689342,1712386244696,-500.0,0.00024599,2]
[321689343,1712386244706,-500.0,0.00024599,2]
[321689344,1712386244716,-500.0,0.00024599,2]
[321689345,1712386244725,-500.0,0.00024599,2]
[321689346,1712386244735,-500.0,0.00024599,2]
[321689347,1712386244744,-500.0,0.00024599,2]
[321689348,1712386244753,-500.0,0.00024599,2]
[321689349,1712386244763,-500.0,0.00024599,2]
[321689350,1712386244775,-500.0,0.00024599,2]
[321689351,1712386244787,-500.0,0.00024599,2]
[321689352,1712386244796,-500.0,0.00024599,2]
[321689353,1712386244806,-500.0,0.00024599,2]
[321689354,1712386244816,-545.86,0.00024599,2]
[321689355,1712386244826,-500.0,0.00024599,2]
[321689356,1712386244837,-545.86,0.00024599,2]
[321689357,1712386244847,-975.59,0.00024599,2]
[321689358,1712386244857,-975.59,0.00024599,2]
[321689359,1712386244866,-500.0,0.00024599,2]
[321689360,1712386244876,-500.0,0.00024599,2]
[321689361,1712386244887,-500.0,0.00024599,2]
[321689362,1712386244897,-480.46509618,0.00024599,2]
[321689363,1712386244906,-1018.91,0.00024599,2]
[321689364,1712386244916,-1018.91,0.00024599,2]
[321689365,1712386244926,-1256.98,0.00024599,2]
[321689366,1712386244935,-1256.98,0.00024599,2]
[321689367,1712386244945,-500.0,0.00024599,2]
[321689368,1712386244955,-500.0,0.00024599,2]
[321689369,1712386244970,-500.0,0.00024599,2]
[321689370,1712386244980,-500.0,0.00024599,2]
[321689371,1712386244992,-611.11,0.00024599,2]
[321689372,1712386245003,-500.0,0.00024599,2]
[321689373,1712386245014,-611.11,0.00024599,2]
[321689374,1712386245026,-612.84,0.00024599,2]
[321689375,1712386245038,-500.0,0.00024599,2]
[321689376,1712386245049,-500.0,0.00024599,2]
[321689377,1712386245059,-500.0,0.00024599,2]
[321689378,1712386245070,-500.0,0.00024599,2]
[321689379,1712386245079,-500.0,0.00024599,2]
[321689380,1712386245090,-500.0,0.00024599,2]
[321689381,1712386245100,-500.0,0.00024599,2]
[321689382,1712386245110,-500.0,0.00024599,2]
[321689383,1712386245120,-500.0,0.00024599,2]
[321689384,1712386245130,-500.0,0.00024599,2]
[321689385,1712386245140,-500.0,0.00024599,2]
[321689386,1712386245150,-1160.49,0.00024599,2]
[321689387,1712386245160,-1160.49,0.00024599,2]
[321689388,1712386245170,-500.0,0.00024599,2]
[321689389,1712386245179,-500.0,0.00024599,2]
[321689390,1712386245189,-500.0,0.00024599,2]
[321689391,1712386245199,-500.0,0.00024599,2]
[321689392,1712386245210,-500.0,0.00024599,2]
[321689393,1712386245224,-500.0,0.00024599,2]
[321689394,1712386245278,-502.08,0.00024599,2]
[321689395,1712386245288,-502.08,0.00024599,2]
[321689396,1712386245298,-500.0,0.00024599,2]
[321689397,1712386245307,-500.0,0.00024599,2]
[321689398,1712386245317,-500.0,0.00024599,2]
[321689399,1712386245326,-500.0,0.00024599,2]
[321689400,1712386245335,-500.0,0.00024599,2]
[321689401,1712386245345,-500.0,0.00024599,2]